{"text_format":"1","workbook":"xlsx","n_sheets":3,"sheets":["全体","サイトの一覧","担当者連絡先"],"not_rendered":{"charts":0,"images":0,"macros":1,"external_links":0,"defined_names":3,"comments":3,"pivot_tables":0},"unopened":[],"bounds":{"document_bytes":16777216,"sheet_cells":100000,"rows_first":2000,"rows_last":500,"rows_between":2000,"halvings":0,"cell_chars":16384,"cell_head_chars":4096},"cells_cut":0,"cells_raw":0,"read":"whole","date_system":"1900"}

{"sheet":"全体","index":0,"n_rows":53,"n_cols":64,"rows_kept":53,"cut":false,"hidden":false,"merged":[[39,5,39,14],[42,5,42,14],[43,5,43,14],[38,7,38,8],[7,2,7,6],[35,5,35,14],[36,5,36,14],[7,7,7,8],[7,9,7,14],[23,3,23,14],[24,3,24,14],[25,3,25,14],[18,3,18,14],[5,0,6,1],[19,3,19,14],[20,3,20,14],[26,3,26,14],[27,3,27,14],[21,3,21,14],[22,3,22,14],[8,2,8,14],[44,5,44,14],[45,5,45,14],[46,5,46,14],[51,7,51,8],[51,9,51,12],[49,5,49,6],[49,9,49,14],[49,7,49,8],[51,5,51,6],[50,5,50,11],[2,5,2,14],[3,5,3,14],[5,5,5,14],[6,5,6,14],[4,5,4,6],[4,7,4,8],[4,9,4,14]]}
["マネジメントシステム認証登録 申込書/見積依頼",null,null,null,null,null,null,null,null,null,null,null,null,null,null,null,"選択肢"]
["一般財団法人日本海事協会の「マネジメントシステム認証規則及び同細則」を了承の上、マネジメントシステムの審査を申込みます。"]
["A1","貴社名（組織名）","和文"]
[null,null,"英文"]
["A2","所在地等","和文",null,null,"郵便番号 / ZIP",null,"都道府県",null,"ビル名や階数を除いて地番まで入力してください。",null,null,null,null,null,null,"北海道","青森県","岩手県","宮城県","秋田県","山形県","福島県","茨城県","栃木県","群馬県","埼玉県","千葉県","東京都","神奈川県","新潟県","富山県","石川県","福井県","山梨県","長野県","岐阜県","静岡県","愛知県","三重県","滋賀県","京都府","大阪府","兵庫県","奈良県","和歌山県","鳥取県","島根県","岡山県","広島県","山口県","徳島県","香川県","愛媛県","高知県","福岡県","佐賀県","長崎県","熊本県","大分県","宮崎県","鹿児島県","沖縄県","海外（国・地域名）"]
["シート「サイトの一覧」も入力してください。",null,"英文"]
[null,null,"URL"]
["A3","代表者","氏名",null,null,null,null,"役職"]
["A4","担当者連絡先","シート「担当者連絡先」に入力してください。"]
[]
["B1","適用規格",null,"ISO 9001 (JIS Q 9001)（品質マネジメントシステム）",null,null,null,null,null,null,null,null,null,null,null,null,false,{"$f":"IF(Q11,\"ISO 9001（品質マネジメントシステム）\",\"\")","v":""},{"$f":"IFERROR(INDEX(R:R,1/LARGE(INDEX((R$11:R$17<>\"\")/ROW($11:$17),),ROW(A1))),\"\")","v":""},{"$f":"IF(Q11,\"ISO 9001担当者に同じ\",\"\")","v":""},{"$f":"IFERROR(INDEX(T:T,1/LARGE(INDEX((T$11:T$18<>\"\")/ROW($11:$18),),ROW(A1))),\"\")","v":"その他（担当者名を入力してください）"}]
["複数の場合はB2を入力",null,null,"ISO 14001 (JIS Q 14001)（環境マネジメントシステム）",null,null,null,null,null,null,null,null,null,null,null,null,false,{"$f":"IF(Q12,\"ISO 14001（環境マネジメントシステム）\",\"\")","v":""},{"$f":"IFERROR(INDEX(R:R,1/LARGE(INDEX((R$11:R$17<>\"\")/ROW($11:$17),),ROW(A2))),\"\")","v":""},{"$f":"IF(Q12,\"ISO 14001担当者に同じ\",\"\")","v":""},{"$f":"IFERROR(INDEX(T:T,1/LARGE(INDEX((T$11:T$18<>\"\")/ROW($11:$18),),ROW(A2))),\"\")","v":""}]
[null,null,null,"ISO 22163（鉄道品質マネジメントシステム）",null,null,null,null,null,null,null,null,null,null,null,null,false,{"$f":"IF(Q13,\"ISO 22163（鉄道品質マネジメントシステム）\",\"\")","v":""},{"$f":"IFERROR(INDEX(R:R,1/LARGE(INDEX((R$11:R$17<>\"\")/ROW($11:$17),),ROW(A3))),\"\")","v":""},{"$f":"IF(Q13,\"ISO 22163担当者に同じ\",\"\")","v":""},{"$f":"IFERROR(INDEX(T:T,1/LARGE(INDEX((T$11:T$18<>\"\")/ROW($11:$18),),ROW(A3))),\"\")","v":""}]
[null,null,null,"ISO/IEC 27001 (JIS Q 27001)（情報セキュリティマネジメントシステム）",null,null,null,null,null,null,null,null,null,null,null,null,false,{"$f":"IF(Q14,\"ISO 27001（情報セキュリティマネジメントシステム）\",\"\")","v":""},{"$f":"IFERROR(INDEX(R:R,1/LARGE(INDEX((R$11:R$17<>\"\")/ROW($11:$17),),ROW(A4))),\"\")","v":""},{"$f":"IF(Q14,\"ISO 27001担当者に同じ\",\"\")","v":""},{"$f":"IFERROR(INDEX(T:T,1/LARGE(INDEX((T$11:T$18<>\"\")/ROW($11:$18),),ROW(A4))),\"\")","v":""}]
[null,null,null,"ISO 39001（道路交通安全マネジメントシステム）",null,null,null,null,null,null,null,null,null,null,null,null,false,{"$f":"IF(Q15,\"ISO 39001（道路交通安全マネジメントシステム）\",\"\")","v":""},{"$f":"IFERROR(INDEX(R:R,1/LARGE(INDEX((R$11:R$17<>\"\")/ROW($11:$17),),ROW(A5))),\"\")","v":""},{"$f":"IF(Q15,\"ISO 39001担当者に同じ\",\"\")","v":""},{"$f":"IFERROR(INDEX(T:T,1/LARGE(INDEX((T$11:T$18<>\"\")/ROW($11:$18),),ROW(A5))),\"\")","v":""}]
[null,null,null,"ISO 45001 (JIS Q 45001)（労働安全衛生マネジメントシステム）",null,null,null,null,null,null,null,null,null,null,null,null,false,{"$f":"IF(Q16,\"ISO 45001（労働安全衛生マネジメントシステム）\",\"\")","v":""},{"$f":"IFERROR(INDEX(R:R,1/LARGE(INDEX((R$11:R$17<>\"\")/ROW($11:$17),),ROW(A6))),\"\")","v":""},{"$f":"IF(Q16,\"ISO 45001担当者に同じ\",\"\")","v":""},{"$f":"IFERROR(INDEX(T:T,1/LARGE(INDEX((T$11:T$18<>\"\")/ROW($11:$18),),ROW(A6))),\"\")","v":""}]
[null,null,null,"ISO 50001 (JIS Q 50001)（エネルギーマネジメントシステム）",null,null,null,null,null,null,null,null,null,null,null,null,false,{"$f":"IF(Q17,\"ISO 50001（エネルギーマネジメントシステム）\",\"\")","v":""},{"$f":"IFERROR(INDEX(R:R,1/LARGE(INDEX((R$11:R$17<>\"\")/ROW($11:$17),),ROW(A7))),\"\")","v":""},{"$f":"IF(Q17,\"ISO 50001担当者に同じ\",\"\")","v":""},{"$f":"IFERROR(INDEX(T:T,1/LARGE(INDEX((T$11:T$18<>\"\")/ROW($11:$18),),ROW(A7))),\"\")","v":""}]
["B2","統合審査実施の要件","統合審査実施の要件に適合していることを確認するため、次の各項目に該当する場合はチェックしてください。",null,null,null,null,null,null,null,null,null,null,null,null,null,null,null,null,"その他（担当者名を入力してください）",{"$f":"IFERROR(INDEX(T:T,1/LARGE(INDEX((T$11:T$18<>\"\")/ROW($11:$18),),ROW(A8))),\"\")","v":""}]
["B1が1つの場合は入力不要",null,null,"各マネジメントシステムの適用範囲（活動、製品又はサービス、組織）は同一である。"]
[null,null,null,"各マネジメントシステムの認証周期は同一である（又は同一とすることに同意している）。"]
[null,null,null,"統合された単一のマネジメントシステム文書を構築している（作業指示書等を含め､適切な策定レベルまで統合された文書一式をもつ）。"]
[null,null,null,"マネジメントレビューは事業戦略及び計画の全体を考慮に入れ実施している（又は実施を計画している）。"]
[null,null,null,"内部監査は、統合された手法（アプローチ）で実施している（又は実施を計画している）。"]
[null,null,null,"方針及び目標に係る活動は､統合された手法（アプローチ）で実施・管理している。"]
[null,null,null,"マネジメントシステムのプロセスは､統合された手法（アプローチ）で管理している。"]
[null,null,null,"統合された手法（アプローチ）による改善への取り組み（リスク管理、是正処置、測定及び継続的改善等）を行っている。"]
[null,null,null,"管理支援体制及び責任体制は統合している。"]
[null,null,null,"受審側として、審査チームよりの複数の側面に関する質問に対応できる能力を確保している。"]
[null,null,null,null,null,null,null,null,null,null,null,null,null,null,null,null,1]
["C1","審査の種類",null,null,null,null,null,null,null,null,null,null,null,null,null,null,"(ASR) エイエスアール","(BCJ) 日本建築センター","(BL) ベターリビング","(BSI) BSIグループジャパン","(BSK) 防衛調達基盤整備協会","(BV) ビューローベリタスジャパン","(DNV) デット ノルスケ ベリタス エーエス","(DQS) ドイツ品質システム認証","(EQA) EQA国際認証センター","(GBRC-SCC) 日本建築総合試験所","(IMJ) アイエムジェー審査登録センター","(INTERTEC) インターテック･サーティフィケーション","(ISA) 国際システム審査株式会社","(ISM) 国際規格審査センター","(J-VAC) ジェイ-ヴァック","(JACO) 日本環境認証機構","(JAO) 日本審査機構","(JAPEIC) 発電設備技術検査協会","(JARI) 日本自動車研究所","(JCQA) 日本化学キューエイ","(JET) 電気安全環境研究所","(JHIA) 日本燃焼機器検査協会","(JIA) 日本ガス機器検査協会","(JICQA) 日本検査キューエイ","(JMA) 日本能率協会","(JQA) 日本品質保証機構","(JSA) 日本規格協会","(JTCCM) 建材試験センター","(JUSE) 日本科学技術連盟","(KHK) 高圧ガス保安協会","(LIA) 日本エルピーガス機器検査協会","(LRQA) ロイド レジスター クオリティ アシュアランス リミテッド","(MIC) ムーディー・インターナショナル サーティフィケーション株式会社","(MSA) マネジメントシステム評価センター","(NJCS) 北日本認証サービス株式会社","(NKKKQA) 日本海事検定キューエイ","(NQA) NQA-JAPAN","(OISC) 国際規格認証機構","(PJR) ペリー ジョンソン レジストラー インク","(RB-ISO) ISO審査登録機構","(RCJ) 日本電子部品信頼性センター","(SAC) ＳＡＣジャパン","(SAI) ＳＡＩグローバルジャパン","(SGS) SGSジャパン","(TUV) テュフ・ラインランド・ジャパン","(UL DQS) UL DQS Inc. Management Systems Solutions"]
["C2","お申し込みの内容",null,null,null,null,null,null,null,null,null,null,null,null,null,null,true,false]
[]
["D1","マネジメントシステムの運用開始時期",null,null,null,null,null,"年",null,"月","*初回審査の場合に入力してください。"]
[null,"審査希望時期",null,null,null,"第1段階",null,"年",null,"月","*初回審査の場合に入力してください。"]
[null,null,null,null,null,"第2段階",null,"年",null,"月","*初回審査の場合に入力してください。"]
["D2","希望する認証範囲","和文"]
[null,"（製品、サービス、活動）","英文"]
["D3","認証範囲に係る要員","要員数",null,null,null,"人（含 パート、派遣、季節・臨時雇用、常駐の協力社員等）",null,null,null,null,null,null,null,null,null,"なし","二交代制","三交代制","その他"]
[null,null,"交代勤務",null,null,null,"対象要員数",null,null,"人"]
[null,null,null,null,"「その他」の交代勤務の詳細"]
["D4","認証に含めるサイト",null,null,null,null,"*複数サイトの場合、シート「サイトの一覧」に詳細を入力してください。",null,null,null,null,null,null,null,null,null,"単一サイト","複数サイト"]
["D5","外部委託プロセス",null,null,null,null,"*「あり」の場合、D6欄にプロセスを箇条書きしてください。",null,null,null,null,null,null,null,null,null,"なし","あり"]
["D6","外部委託プロセス詳細"]
[]
[]
["D7","マネジメントシステム文書",null,null,null,"マニュアル等のタイトル、文書番号/改訂番号、制定日、ISO 27001の場合は適用宣言書の版等"]
["D8","コンサルタント契約",null,null,null,"会社名/氏名",null,null,null,null,null,null,null,null,null,null,"なし"]
[]
["E","請求書送付先",null,null,null,"名称",null,null,null,null,null,null,null,null,null,null,"A2に同じ","その他（入力してください）"]
[null,"住所",null,null,null,"郵便番号 / ZIP",null,"都道府県",null,"都道府県以下の住所（ビル名や階数を含む）を入力してください。",null,null,null,null,null,null,"北海道","青森県","岩手県","宮城県","秋田県","山形県","福島県","茨城県","栃木県","群馬県","埼玉県","千葉県","東京都","神奈川県","新潟県","富山県","石川県","福井県","山梨県","長野県","岐阜県","静岡県","愛知県","三重県","滋賀県","京都府","大阪府","兵庫県","奈良県","和歌山県","鳥取県","島根県","岡山県","広島県","山口県","徳島県","香川県","愛媛県","高知県","福岡県","佐賀県","長崎県","熊本県","大分県","宮崎県","鹿児島県","沖縄県","海外（国・地域名）"]
[null,"所属部署・役職",null,null,null,null,null,null,null,null,null,null,"請求書受取方法",null,"メール",null,"メール","郵送"]
[null,"担当者",null,null,null,null,null,"E-mail",null,null,null,null,null,"電話番号"]
["（以下、余白）"]

{"sheet":"サイトの一覧","index":1,"n_rows":27,"n_cols":61,"rows_kept":27,"cut":false,"hidden":false,"merged":[[17,5,17,6],[2,3,2,6],[3,3,3,6],[6,3,6,6],[7,3,7,6],[4,3,4,4],[4,5,4,6],[5,3,5,6],[18,3,18,6],[26,3,26,6],[8,3,8,6],[9,3,9,6],[10,3,10,6],[12,3,12,6],[15,3,15,6],[13,3,13,6],[16,3,16,6],[19,3,19,6],[20,3,20,6],[21,3,21,6],[22,3,22,6],[23,3,23,6],[25,3,25,6],[17,3,17,4]]}
["（複数サイトの場合に入力してください。）",null,null,null,null,null,null,null,"選択肢1","選択肢2","選択肢3","選択肢4"]
["基幹サイト"]
["名称",null,"和文"]
[null,null,"英文"]
["所在地",null,"和文","郵便番号 / ZIP",null,"都道府県",null,null,null,null,null,null,null,"北海道","青森県","岩手県","宮城県","秋田県","山形県","福島県","茨城県","栃木県","群馬県","埼玉県","千葉県","東京都","神奈川県","新潟県","富山県","石川県","福井県","山梨県","長野県","岐阜県","静岡県","愛知県","三重県","滋賀県","京都府","大阪府","兵庫県","奈良県","和歌山県","鳥取県","島根県","岡山県","広島県","山口県","徳島県","香川県","愛媛県","高知県","福岡県","佐賀県","長崎県","熊本県","大分県","宮崎県","鹿児島県","沖縄県","海外（国・地域名）"]
[null,null,null,"ビル名や階数を除いて都道府県名から地番まで入力"]
[null,null,"英文"]
["希望する認証範囲",null,"和文"]
[null,null,"英文"]
["要員数"]
[null,"内、常駐の非正規社員数"]
["交代勤務",null,null,"なし","対象要員数",null,"人",null,"なし","二交代制","三交代制","その他"]
["「その他」の交代勤務の場合、その詳細"]
[null,"各勤務の内容・管理体制",null,null,null,null,null,null,"同一","相違あり"]
["サイトNo.1"]
["名称",null,"和文"]
[null,null,"英文"]
["所在地",null,"和文","郵便番号 / ZIP",null,"都道府県",null,null,null,null,null,null,null,"北海道","青森県","岩手県","宮城県","秋田県","山形県","福島県","茨城県","栃木県","群馬県","埼玉県","千葉県","東京都","神奈川県","新潟県","富山県","石川県","福井県","山梨県","長野県","岐阜県","静岡県","愛知県","三重県","滋賀県","京都府","大阪府","兵庫県","奈良県","和歌山県","鳥取県","島根県","岡山県","広島県","山口県","徳島県","香川県","愛媛県","高知県","福岡県","佐賀県","長崎県","熊本県","大分県","宮崎県","鹿児島県","沖縄県","海外（国・地域名）"]
[null,null,null,"ビル名や階数を除いて都道府県名から地番まで入力"]
[null,null,"英文"]
["希望する認証範囲",null,"和文"]
[null,null,"英文"]
["要員数"]
[null,"内、常駐の非正規社員数"]
["交代勤務",null,null,"なし","対象要員数",null,"人",null,"なし","二交代制","三交代制","その他"]
["「その他」の交代勤務の場合、その詳細"]
[null,"各勤務の内容・管理体制",null,null,null,null,null,null,"同一","相違あり"]

{"sheet":"担当者連絡先","index":2,"n_rows":5,"n_cols":61,"rows_kept":5,"cut":false,"hidden":false,"merged":[[2,2,2,3],[2,5,2,8],[2,9,2,10],[1,2,1,11],[4,2,4,3],[4,4,4,5],[4,6,4,11],[3,2,3,11]]}
["A4","担当者連絡先","*複数の適用規格がある場合は「担当者の追加」をクリックして各適用規格の担当者を入力してください。",null,null,null,null,null,null,null,null,null,null,"選択肢"]
[1,"担当規格",null,null,null,null,null,null,null,null,null,null,null,"ISO 9001（品質マネジメントシステム）","ISO 14001（環境マネジメントシステム）","ISO 22163（鉄道品質マネジメントシステム）","ISO 27001（情報セキュリティマネジメントシステム）","ISO 39001（道路交通安全マネジメントシステム）","ISO 45001（労働安全衛生マネジメントシステム）","ISO 50001（エネルギーマネジメントシステム）"]
[null,"氏名",null,null,"E-mail",null,null,null,null,"電話番号",null,null,null,"ISO 9001担当者に同じ","ISO 14001担当者に同じ","ISO 22163担当者に同じ","ISO 27001担当者に同じ","ISO 39001担当者に同じ","ISO 45001担当者に同じ","ISO 50001担当者に同じ","その他（担当者名を入力してください）"]
[null,"所属部署・役職"]
[null,"住所",{"$f":"IF(C3=\"\",\"郵便番号 / ZIP\",\"\")","v":"郵便番号 / ZIP"},null,{"$f":"IF(C3=\"\",\"都道府県（選択）\",\"\")","v":"都道府県（選択）"},null,{"$f":"IF(C3=\"\",\"都道府県以下の住所（ビル名や階数を含む）を入力してください。\",\"\")","v":"都道府県以下の住所（ビル名や階数を含む）を入力してください。"},null,null,null,null,null,null,"北海道","青森県","岩手県","宮城県","秋田県","山形県","福島県","茨城県","栃木県","群馬県","埼玉県","千葉県","東京都","神奈川県","新潟県","富山県","石川県","福井県","山梨県","長野県","岐阜県","静岡県","愛知県","三重県","滋賀県","京都府","大阪府","兵庫県","奈良県","和歌山県","鳥取県","島根県","岡山県","広島県","山口県","徳島県","香川県","愛媛県","高知県","福岡県","佐賀県","長崎県","熊本県","大分県","宮崎県","鹿児島県","沖縄県","海外（国・地域名）"]